bitfinex/quotes_SOLUSD_20240624
["timestamp","ask_amount","ask_price","bid_price","bid_amount"]
[1719237607954,1.8853598,129.14,129.05,158.1147]
[1719237608155,1.8853598,129.14,129.05,19.3713]
[1719237608479,24.2351,129.13,129.03,7.75]
[1719237608690,46.8853598,129.12,129.03,7.75]
[1719237608886,46.8853598,129.12,129.04,7.7495]
[1719237609060,1.8853598,129.12,129.04,19.3732]
[1719237609253,1.8853598,129.12,129.01,200.0]
[1719237609254,1.8853598,129.12,129.03,100.0]
[1719237609665,1.8853598,129.12,129.05,27.1208]
[1719237610190,1.8853598,129.12,129.04,7.7494]
[1719237610364,46.8853598,129.12,129.05,7.7488]
[1719237610686,1.8853598,129.12,129.04,19.3734]
[1719237610988,16.491,129.13,129.08,7.747]
[1719237611188,16.491,129.13,129.06,200.0]
[1719237611189,16.491,129.13,129.1,7.7458]
[1719237611360,16.491,129.13,129.04,200.0]
[1719237611562,1.5453598,129.12,129.07,19.3685]
[1719237611781,1.5453598,129.12,129.05,7.7488]
[1719237611978,9.2900598,129.12,129.02,100.0]
[1719237612190,9.2900598,129.12,129.01,19.3772]
[1719237612365,1.5453598,129.12,129.05,7.7488]
[1719237612569,1.5453598,129.12,129.04,7.7492]
[1719237612768,0.34,129.11,129.04,7.7492]
[1719237613062,1.8853598,129.11,129.04,7.7492]
[1719237613391,1.8853598,129.11,129.03,27.125]
[1719237613559,1.8853598,129.11,129.03,19.375]
[1719237613970,1.8853598,129.11,129.04,7.7494]
[1719237614177,16.3159,129.18,129.11,200.0]
[1719237614382,16.3159,129.18,129.15,7.7429]
[1719237614574,6.1602,129.19,129.13,219.3598]
[1719237614772,6.1602,129.19,129.15,19.3566]
[1719237615301,6.1602,129.19,129.12,19.3611]
[1719237615460,6.1602,129.19,129.06,206.4555]
[1719237615661,6.1602,129.19,129.11,7.7448]
[1719237616129,6.1602,129.19,129.09,19.3651]
[1719237616277,7.7413,129.18,129.09,19.3651]
[1719237616587,7.7412,129.18,129.09,27.1115]
[1719237616758,0.34,129.17,129.09,19.3651]
[1719237616961,0.34,129.18,129.1,7.7454]
[1719237617162,6.1602,129.19,129.11,19.363]
[1719237617390,6.1602,129.19,129.11,119.363]
[1719237617693,1.5453598,129.18,129.13,7.7437]
[1719237617894,1.5453598,129.18,129.12,7.7446]
[1719237618569,0.17,129.17,129.13,7.7441]
[1719237619377,0.34,129.17,129.13,7.7441]
[1719237619573,6.1602,129.19,129.14,7.7434]
[1719237619777,2.31935361,129.21,129.15,145.0]
[1719237619778,0.77399381,129.21,129.15,145.0]
[1719237619990,0.77399381,129.21,129.17,19.3539]
[1719237620505,16.3159,129.22,129.19,27.091]
[1719237620703,16.3159,129.22,129.18,7.7409]
[1719237620999,1.5453598,129.21,129.15,52.7428]
[1719237621171,16.3159,129.22,129.17,7.7413]
[1719237621378,16.3159,129.22,129.15,45.0]
[1719237621694,16.3159,129.22,129.18,7.741]
[1719237622080,6.4026,129.23,129.2,7.7396]
[1719237622278,15.1026,129.26,129.21,19.3477]
[1719237622584,7.9663598,129.27,129.22,7.7385]
[1719237622794,6.421,129.27,129.22,7.7385]
[1719237623291,6.421,129.27,129.23,7.738]
[1719237624076,6.421,129.27,129.21,19.3477]
[1719237624077,6.421,129.27,129.21,27.0864]
[1719237624607,6.421,129.27,129.21,19.3477]
[1719237624789,6.421,129.27,129.22,7.7385]
[1719237624994,6.421,129.27,129.23,7.738]
[1719237625195,1.5453598,129.29,129.23,19.3451]
[1719237625705,16.6479598,129.3,129.25,7.7368]
[1719237625913,15.1026,129.3,129.27,7.7353]
[1719237626078,6.5829,129.31,129.27,7.7353]
[1719237626286,6.5829,129.31,129.27,27.0745]
[1719237626495,1.5453598,129.33,129.29,7.7344]
[1719237626699,22.5791,129.34,129.29,7.7344]
[1719237626907,6.6092,129.34,129.31,7.7333]
[1719237627082,1.5453598,129.36,129.3,7.7337]
[1719237627403,1.5453598,129.36,129.29,27.0697]
[1719237627606,1.5453598,129.36,129.3,52.7338]
[1719237627985,1.5453598,129.36,129.31,19.3331]
[1719237628184,8.1545598,129.37,129.31,27.0662]
[1719237628384,8.1545598,129.37,129.32,7.7326]
[1719237628603,8.1545598,129.37,129.31,27.0662]
[1719237628979,8.1545598,129.37,129.31,27.0663]
[1719237629306,8.1097598,129.41,129.33,100.0]
[1719237629501,8.1097598,129.41,129.35,27.0569]
[1719237630013,6.5644,129.41,129.35,27.0569]
[1719237630184,8.1097598,129.41,129.35,27.0569]
[1719237630504,8.1097598,129.41,129.35,19.3261]
[1719237630887,8.1097598,129.41,129.33,7.7315]
[1719237631129,8.1097598,129.41,129.34,45.0]
[1719237631305,8.1097598,129.41,129.34,7.731]
[1719237631508,16.2044,129.42,129.36,7.7302]
[1719237631811,16.2044,129.42,129.33,100.0]
[1719237632021,1.5453598,129.41,129.35,7.7305]
[1719237632221,16.2044,129.42,129.36,7.7302]
[1719237632389,16.2044,129.42,129.36,52.7302]
[1719237633010,16.2044,129.42,129.35,27.0577]
[1719237633211,0.17,129.41,129.36,45.0]
[1719237633705,0.34,129.41,129.36,45.0]
[1719237633910,0.34,129.41,129.37,7.7297]
[1719237634086,0.34,129.41,129.36,52.7302]
[1719237635014,0.34,129.41,129.35,27.0578]
[1719237635900,1.8853598,129.41,129.33,100.0]
[1719237636201,1.8853598,129.41,129.31,100.0]
[1719237636407,1.8853598,129.41,129.34,7.7314]
[1719237636587,1.8853598,129.41,129.33,138.6584]
[1719237636793,1.8853598,129.41,129.37,19.3236]
[1719237637108,16.2044,129.42,129.36,7.7302]
[1719237637296,16.2044,129.42,129.36,27.0557]
[1719237637497,16.2044,129.42,129.35,7.7304]
[1719237637498,1.5453598,129.41,129.35,7.7304]
[1719237637705,9.2727598,129.41,129.29,100.0]
[1719237637885,9.2727598,129.41,129.31,7.7331]
[1719237637886,1.5453598,129.41,129.31,7.7331]
[1719237638209,9.2727598,129.41,129.31,7.7331]
[1719237638424,7.8982,129.4,129.29,19.3353]
[1719237638586,54.4440598,129.39,129.29,19.3353]
[1719237638788,7.7307,129.36,129.27,6.602]
[1719237639012,1.8853598,129.35,129.26,19.3404]
[1719237639218,1.8853598,129.35,129.26,27.0762]
[1719237639512,16.0584,129.34,129.26,19.3404]
[1719237639814,46.8853598,129.33,129.24,7.737]
[1719237639994,1.5453598,129.32,129.19,200.0]
[1719237640186,1.5453598,129.32,129.2,19.349]
[1719237640187,0.34,129.31,129.2,19.349]
[1719237640409,0.77399381,129.21,129.2,127.0887]
[1719237640907,0.77399381,129.21,129.2,27.0887]
[1719237641486,0.77399381,129.21,129.2,19.349]
[1719237641923,0.77399381,129.21,129.2,27.0889]
[1719237642119,0.77399381,129.21,129.2,72.0889]
[1719237643007,0.34,129.31,129.27,19.3388]
[1719237643213,22.1498,129.34,129.28,7.7346]
[1719237643393,22.1498,129.34,129.29,19.3359]
[1719237643394,6.0914,129.34,129.29,19.3359]
[1719237643710,1.5453598,129.37,129.29,27.0703]
[1719237643890,1.5453598,129.37,129.28,7.735]
[1719237644087,1.5453598,129.37,129.29,45.0]
[1719237644307,1.5453598,129.37,129.3,27.0681]
[1719237644510,1.5453598,129.37,129.3,19.3344]
[1719237644916,6.0919,129.38,129.32,19.3313]
[1719237645199,6.0919,129.38,129.34,7.7315]
[1719237645815,6.0919,129.38,129.35,7.7309]
[1719237646192,6.4216,129.42,129.35,7.7309]
[1719237646398,7.9669598,129.42,129.36,7.7303]
[1719237646718,7.9669598,129.42,129.34,27.0595]
[1719237647218,7.9669598,129.42,129.34,19.3281]
[1719237647417,7.9669598,129.42,129.31,19.333]
[1719237647716,15.6938598,129.42,129.32,7.7323]
[1719237647922,7.9669598,129.42,129.34,7.7315]
[1719237648123,0.17,129.41,129.33,27.0615]
[1719237648297,1.8853598,129.41,129.34,7.7315]
[1719237648496,1.8853598,129.41,129.33,19.3296]
[1719237648699,1.8853598,129.41,129.35,27.0571]
[1719237649098,1.8853598,129.41,129.35,27.0572]
[1719237649315,1.8853598,129.41,129.35,27.0571]
[1719237649819,1.8853598,129.41,129.35,7.7307]
[1719237650222,1.8853598,129.41,129.34,19.3283]
[1719237650396,1.7153598,129.41,129.35,45.0]
[1719237650594,1.5453598,129.45,129.38,7.7287]
[1719237650799,1.5453598,129.45,129.38,19.322]
[1719237650997,6.4087,129.46,129.4,19.3189]
[1719237651225,6.4087,129.46,129.39,200.0]
[1719237651423,16.6225,129.47,129.43,7.7257]
[1719237651599,15.0047,129.52,129.43,7.7257]
[1719237651802,1.5453598,129.51,129.44,64.3135]
[1719237652107,1.5453598,129.51,129.44,72.0389]
[1719237652295,1.5453598,129.51,129.44,27.0389]
[1719237652496,1.5453598,129.49,129.42,7.7264]
[1719237652706,1.5453598,129.49,129.43,7.7259]
[1719237652908,1.5453598,129.49,129.38,19.3224]
[1719237652909,7.7237,129.48,129.38,19.3224]
[1719237653225,6.601,129.46,129.37,38.6468]
[1719237653422,1.5453598,129.45,129.39,7.7283]
[1719237653647,1.5453598,129.45,129.39,19.3206]
[1719237653830,0.17,129.44,129.39,19.3206]
[1719237654129,6.941,129.46,129.41,7.7273]
[1719237654309,0.34,129.45,129.41,19.318]
[1719237654625,6.601,129.46,129.41,19.318]
[1719237654831,0.34,129.45,129.39,7.7284]
[1719237655131,1.8853598,129.45,129.39,7.7284]
[1719237655423,6.601,129.46,129.34,38.6549]
[1719237655424,6.601,129.46,129.4,7.7275]
[1719237655636,6.601,129.46,129.42,7.7263]
[1719237655924,6.601,129.46,129.42,7.7267]
[1719237656119,6.601,129.46,129.42,7.7266]
[1719237656509,6.601,129.46,129.43,7.7257]
[1719237656723,6.601,129.46,129.42,27.0422]
[1719237656918,6.601,129.46,129.4,7.7278]
[1719237657226,6.601,129.46,129.42,7.7262]
[1719237657403,1.5453598,129.49,129.41,27.0452]
[1719237657607,1.5453598,129.49,129.41,19.318]
[1719237657815,9.2679598,129.49,129.39,7.7281]
[1719237658014,7.7238,129.47,129.38,19.322]
[1719237658218,1.5453598,129.46,129.35,19.3265]
[1719237658528,15.399,129.45,129.35,19.3265]
[1719237658731,1.8853598,129.44,129.37,7.7294]
[1719237658935,1.8853598,129.44,129.36,7.7302]
[1719237659112,1.8853598,129.44,129.36,7.7303]
[1719237659317,1.8853598,129.44,129.37,7.7296]
[1719237659712,1.8853598,129.44,129.37,19.3239]
[1719237660218,0.34,129.44,129.39,7.7281]
[1719237660414,1.8853598,129.44,129.37,27.0535]
[1719237660605,1.8853598,129.44,129.37,19.3239]
[1719237661036,1.8853598,129.44,129.37,7.7296]
[1719237661233,1.8853598,129.44,129.36,19.3255]
[1719237661432,1.5453598,129.44,129.36,27.0558]
[1719237661613,15.399,129.45,129.38,100.0]
[1719237661937,15.399,129.45,129.41,7.7272]
[1719237662137,15.399,129.45,129.4,19.3197]
[1719237662335,15.399,129.45,129.39,7.7284]
[1719237662644,15.399,129.45,129.41,7.7273]
[1719237662826,1.5453598,129.48,129.41,27.0453]
[1719237663013,1.5453598,129.48,129.41,19.3181]
[1719237663220,1.5453598,129.48,129.4,7.7278]
[1719237663735,1.5453598,129.48,129.38,100.0]
[1719237663952,1.5453598,129.48,129.4,19.3195]
[1719237664112,1.5453598,129.48,129.38,100.0]
[1719237664312,16.9659598,129.49,129.42,100.0]
[1719237664533,15.4206,129.49,129.42,100.0]
[1719237664735,15.4206,129.49,129.44,19.3129]
[1719237664927,15.4206,129.49,129.44,27.0382]
[1719237665116,15.4206,129.49,129.46,19.3108]
[1719237665316,10.6704,129.5,129.49,7.7226]
[1719237665317,4.5,129.5,129.49,7.7226]
[1719237665841,4.5,129.5,129.46,7.724]
[1719237666837,4.5,129.5,129.49,7.7226]
[1719237667029,4.5,129.5,129.48,107.723]
[1719237667231,4.5,129.5,129.49,7.7226]
[1719237667813,4.5,129.5,129.48,107.7227]
[1719237668010,4.5,129.5,129.48,100.0]
[1719237668214,4.5,129.5,129.49,7.7226]
[1719237668435,4.5,129.5,129.48,7.7227]
[1719237668617,4.5,129.5,129.49,7.7226]
[1719237669123,4.5,129.5,129.49,178.7751]
[1719237669318,0.8691485,129.53,129.52,227.0228]
[1719237669534,0.8691485,129.53,129.52,292.0228]
[1719237670028,0.8691485,129.53,129.52,330.6268]
[1719237670219,1.9460378,129.6,129.58,7.7172]
[1719237670413,1.9460378,129.6,129.57,19.2944]
[1719237670621,1.9460378,129.6,129.57,119.2944]
[1719237670828,1.9460378,129.6,129.58,7.7167]
[1719237671038,1.9460378,129.6,129.59,7.7166]
[1719237671540,1.9460378,129.6,129.54,19.2984]
[1719237671735,1.4460378,129.6,129.57,7.7174]
[1719237671912,1.4460378,129.6,129.57,7.7177]
[1719237672112,1.4460378,129.6,129.56,27.0128]
[1719237672412,1.4460378,129.6,129.53,27.0193]
[1719237672613,1.4460378,129.6,129.51,7.7208]
[1719237672917,1.4460378,129.6,129.42,40.1]
[1719237672918,6.1941,129.59,129.47,119.3094]
[1719237673122,46.7153598,129.58,129.42,138.6333]
[1719237673327,7.7195,129.55,129.44,19.313]
[1719237673528,6.3229,129.52,129.41,19.3175]
[1719237673837,6.3229,129.52,129.37,100.0]
[1719237673838,30.1,129.5,129.37,19.323]
[1719237674041,7.7232,129.48,129.37,19.323]
[1719237674229,1.8853598,129.47,129.37,19.323]
[1719237674430,0.17,129.46,129.38,7.7286]
[1719237674625,0.17,129.46,129.37,27.0526]
[1719237674832,0.17,129.46,129.33,119.3296]
[1719237675128,30.27,129.46,129.33,27.0613]
[1719237675435,6.1979,129.44,129.31,7.7328]
[1719237675639,45.1205,129.42,129.32,7.7326]
[1719237675859,46.8853598,129.41,129.3,19.3347]
[1719237676020,7.7288,129.39,129.27,7.7352]
[1719237676221,1.5453598,129.38,129.29,100.0]
[1719237676425,1.5453598,129.4,129.33,7.732]
[1719237676659,0.17,129.39,129.33,7.732]
[1719237676820,0.34,129.39,129.33,7.732]
[1719237677023,1.5453598,129.41,129.35,19.3271]
[1719237677326,0.34,129.4,129.31,119.3319]
[1719237677528,8.068,129.4,129.31,100.0]
[1719237677825,1.5453598,129.39,129.31,100.0]
[1719237678025,0.17,129.38,129.28,19.3377]
[1719237678223,0.17,129.38,129.26,200.0]
[1719237678224,8.0696,129.38,129.26,107.7362]
[1719237678522,9.2751598,129.37,129.26,107.7363]
[1719237678720,0.34,129.36,129.27,107.7351]
[1719237678923,0.34,129.36,129.26,107.7362]
[1719237679133,8.0708,129.36,129.25,27.079]
[1719237679329,1.5453598,129.35,129.22,115.4183]
[1719237679535,6.3799,129.33,129.21,127.0858]
[1719237679746,9.6181598,129.32,129.21,127.0858]
[1719237679943,1.8853598,129.32,129.24,7.7374]
[1719237680149,1.8853598,129.32,129.22,107.7381]
[1719237680435,1.8853598,129.32,129.24,7.7374]
[1719237681036,1.8853598,129.32,129.23,119.3443]
[1719237681364,1.8853598,129.32,129.24,7.737]
[1719237681530,1.8853598,129.32,129.22,100.0]
[1719237681531,9.6180598,129.32,129.22,100.0]
[1719237681727,7.7349,129.29,129.19,100.0]
[1719237681952,45.0,129.31,129.19,200.0]
[1719237681953,1.8853598,129.28,129.19,200.0]
[1719237682445,16.4478,129.31,129.23,100.0]
[1719237682646,0.34,129.3,129.23,100.0]
[1719237682960,14.1125,129.33,129.23,107.738]
[1719237683266,1.5453598,129.32,129.25,7.7368]
[1719237683565,6.3799,129.33,129.24,100.0]
[1719237683566,7.9252598,129.33,129.24,100.0]
[1719237683765,1.5453598,129.32,129.24,100.0]
[1719237684059,7.9252598,129.33,129.24,100.0]
[1719237684273,1.5453598,129.36,129.28,100.0]
[1719237684564,1.5453598,129.36,129.27,127.0738]
[1719237684750,1.5453598,129.36,129.25,100.0]
[1719237684947,1.5453598,129.36,129.23,100.0]
[1719237685142,1.5453598,129.36,129.24,100.0]
[1719237685458,1.5453598,129.36,129.28,107.7346]
[1719237685639,1.5453598,129.36,129.28,100.0]
[1719237685953,1.5453598,129.36,129.28,107.7351]
[1719237686179,1.5453598,129.36,129.29,7.7344]
[1719237686367,15.4345,129.37,129.3,107.7339]
[1719237686531,6.0493,129.38,129.31,7.7333]
[1719237686736,1.5453598,129.41,129.34,100.0]
[1719237686951,16.5928,129.42,129.34,200.0]
[1719237687251,6.2545,129.43,129.34,7.7314]
[1719237687477,1.5453598,129.42,129.31,7.7332]
[1719237687676,1.5453598,129.42,129.3,207.7338]
[1719237687677,7.728,129.4,129.3,207.7338]
[1719237687883,1.5453598,129.39,129.28,100.0]
[1719237688049,7.7292,129.38,129.28,227.0724]
[1719237688250,1.5453598,129.37,129.28,227.0724]
[1719237688474,0.17,129.36,129.28,119.3374]
[1719237688685,0.17,129.36,129.28,127.072]
[1719237688979,0.17,129.36,129.26,200.0]
[1719237689168,0.17,129.36,129.29,7.734]
[1719237689650,0.17,129.36,129.27,27.0744]
[1719237689851,7.7309,129.35,129.26,107.7363]
[1719237690080,7.7322,129.33,129.24,119.3427]
[1719237690276,0.17,129.32,129.24,127.0801]
[1719237690760,0.17,129.32,129.25,7.7368]
[1719237690967,0.17,129.32,129.24,127.08]
[1719237691352,0.17,129.33,129.27,7.7356]
[1719237691553,0.17,129.33,129.24,100.0]
[1719237691878,0.17,129.33,129.24,107.7375]
[1719237692179,0.17,129.33,129.25,7.7368]
[1719237692475,0.17,129.33,129.2,219.3489]
[1719237692677,7.7339,129.3,129.21,7.7393]
[1719237692852,1.8853598,129.29,129.2,127.0886]
[1719237693180,0.17,129.29,129.2,127.0884]
[1719237693350,1.8853598,129.29,129.2,127.0884]
[1719237694074,1.8853598,129.29,129.18,107.7405]
[1719237694292,7.7357,129.28,129.19,7.7404]
[1719237694578,1.8853598,129.27,129.18,107.7409]
[1719237694885,1.8853598,129.27,129.19,7.7404]
[1719237695305,1.8853598,129.27,129.18,107.7409]
[1719237695601,0.34,129.27,129.17,19.3532]
[1719237695808,8.0805598,129.26,129.14,27.1014]
[1719237696093,8.0805598,129.26,129.15,7.7424]
[1719237696267,0.34,129.25,129.16,7.7422]
[1719237696464,8.0805598,129.26,129.19,7.7403]
[1719237696665,8.0805598,129.26,129.18,19.3522]
[1719237696896,14.2715,129.26,129.16,7.7421]
[1719237697567,6.5352,129.26,129.17,7.7415]
[1719237697779,6.5352,129.26,129.17,100.0]
[1719237697996,1.5453598,129.25,129.16,27.0968]
[1719237698294,0.34,129.24,129.16,27.0968]
[1719237698771,0.34,129.24,129.15,100.0]
[1719237698974,0.34,129.24,129.16,7.7423]
[1719237699774,0.17,129.24,129.17,107.7413]
[1719237699995,6.5352,129.26,129.17,119.3539]
[1719237700167,8.0805598,129.26,129.17,119.3539]
[1719237700577,6.5352,129.26,129.2,7.7398]
[1719237700990,16.1095,129.29,129.21,219.3474]
[1719237701202,6.5763,129.3,129.26,7.7363]
[1719237701495,1.5453598,129.32,129.25,19.3421]
[1719237701676,1.5453598,129.32,129.23,107.7379]
[1719237701879,1.5453598,129.33,129.25,100.0]
[1719237702076,23.1249598,129.34,129.25,100.0]
[1719237702281,23.1249598,129.34,129.26,7.7359]
[1719237702485,23.1249598,129.34,129.24,19.3432]
[1719237702680,7.7326,129.33,129.24,19.3432]
[1719237702995,1.5453598,129.33,129.24,127.0806]
[1719237703185,7.7331,129.32,129.23,100.0]
[1719237703387,1.5453598,129.31,129.23,127.0828]
[1719237703695,9.2781598,129.32,129.23,127.0828]
[1719237704196,0.17,129.31,129.23,27.0828]
[1719237704395,0.34,129.31,129.23,27.0828]
[1719237704689,21.5796,129.34,129.25,119.3417]
[1719237704900,21.5796,129.34,129.25,127.0781]
[1719237705194,21.5796,129.34,129.26,7.7359]
[1719237705387,21.5796,129.34,129.25,19.3417]
[1719237705697,7.7335,129.31,129.23,100.0]
[1719237705904,9.2776598,129.33,129.23,207.738]
[1719237706231,1.5453598,129.32,129.21,119.3479]
[1719237706400,8.0737,129.31,129.21,127.0871]
[1719237706579,1.5453598,129.3,129.21,127.0871]
[1719237706885,0.34,129.29,129.22,100.0]
[1719237707093,0.17,129.31,129.24,7.7374]
[1719237707300,0.17,129.31,129.24,100.0]
[1719237707479,0.17,129.32,129.24,19.3433]
[1719237707981,0.17,129.32,129.24,27.0806]
[1719237708489,9.4481598,129.32,129.23,100.0]
[1719237708673,1.7153598,129.32,129.23,7.7376]
[1719237708873,1.7153598,129.32,129.22,7.7385]
[1719237709099,0.17,129.31,129.23,7.7379]
[1719237709285,0.17,129.31,129.22,7.7386]
[1719237709595,0.17,129.31,129.25,7.7367]
[1719237709782,0.17,129.31,129.25,19.3416]
[1719237709973,21.5796,129.34,129.25,27.0781]
[1719237710172,9.2774598,129.33,129.23,107.738]
[1719237710375,9.2782598,129.32,129.23,7.738]
[1719237710574,1.5453598,129.32,129.24,7.7374]
[1719237711000,1.5453598,129.32,129.22,19.3456]
[1719237711227,0.17,129.31,129.2,7.7393]
[1719237711415,7.7347,129.29,129.19,119.3504]
[1719237711702,1.8853598,129.28,129.19,27.0907]
[1719237711879,0.17,129.27,129.19,27.0907]
[1719237712078,0.17,129.27,129.19,19.3504]
[1719237712397,0.17,129.27,129.21,7.7389]
[1719237712896,0.17,129.28,129.24,7.7371]
[1719237713099,0.17,129.29,129.24,7.7371]
[1719237713473,0.17,129.29,129.23,19.3452]
[1719237713474,0.17,129.29,129.25,7.7365]
[1719237713675,1.5453598,129.32,129.25,19.3419]
[1719237713910,1.5453598,129.32,129.24,7.7373]
[1719237714083,1.5453598,129.32,129.23,7.7379]
[1719237714404,9.2782598,129.32,129.23,7.7377]
[1719237714707,9.2782598,129.32,129.22,27.0841]
[1719237714708,9.2784598,129.32,129.22,27.0841]
[1719237714906,7.7335,129.31,129.22,27.0841]
[1719237715102,1.5453598,129.32,129.23,7.7381]
[1719237715103,1.8853598,129.3,129.23,7.7381]
[1719237715286,0.34,129.3,129.24,19.3433]
[1719237715490,0.34,129.31,129.24,19.3433]
[1719237715707,21.5796,129.34,129.26,19.3407]
[1719237715708,23.1249598,129.34,129.26,19.3407]
[1719237716005,1.5453598,129.33,129.26,27.0767]
[1719237716218,21.5796,129.34,129.27,7.7356]
[1719237716420,21.5796,129.34,129.26,27.0768]
[1719237716914,21.5796,129.34,129.27,7.7357]
[1719237717211,21.5796,129.34,129.28,27.0726]
[1719237717624,21.5796,129.34,129.29,7.7342]
[1719237717922,21.5796,129.34,129.28,27.0726]
[1719237718095,8.1185598,129.38,129.32,7.7325]
[1719237718300,8.1185598,129.38,129.3,200.0]
[1719237718508,6.5732,129.38,129.3,200.0]
[1719237719202,6.5732,129.38,129.32,7.7327]
[1719237719402,6.5732,129.38,129.31,27.0662]
[1719237720098,6.5732,129.38,129.32,7.7326]
[1719237720294,0.7732756,129.33,129.32,7.7326]
[1719237720904,0.7732756,129.33,129.32,107.7326]
[1719237721106,0.7732756,129.33,129.32,227.9026]
[1719237721315,0.7732756,129.33,129.32,228.0726]
[1719237721930,0.7732756,129.33,129.32,128.0726]
[1719237722101,0.57451305,129.33,129.32,128.0726]
[1719237722430,1.305e-05,129.33,129.32,128.0726]
[1719237722601,16.4046,129.44,129.4,7.7278]
[1719237722807,1.74402296,129.49,129.4,7.7278]
[1719237722808,6.557,129.47,129.4,7.7278]
[1719237723123,8.30102296,129.47,129.4,7.7278]
[1719237723505,6.557,129.47,129.4,7.7278]
[1719237723720,6.557,129.47,129.41,27.0454]
[1719237724023,6.557,129.47,129.39,200.0]
[1719237724024,6.557,129.47,129.39,100.0]
[1719237724218,6.557,129.47,129.41,7.7273]
[1719237724402,6.557,129.47,129.4,27.0474]
[1719237724616,6.557,129.47,129.41,7.7273]
[1719237725132,6.557,129.47,129.42,7.7263]
[1719237725502,6.557,129.47,129.41,7.7271]
[1719237725915,6.557,129.47,129.42,7.7265]
[1719237726131,6.557,129.47,129.41,7.7271]
[1719237726635,0.17,129.46,129.4,27.0473]
[1719237726929,6.557,129.47,129.42,7.7266]
[1719237727128,0.34,129.46,129.4,19.3196]
[1719237727316,6.557,129.47,129.41,7.7269]
[1719237727632,6.557,129.47,129.42,7.7265]
[1719237728132,6.1299,129.55,129.48,7.7227]
[1719237728334,6.1299,129.55,129.48,19.3076]
[1719237728335,7.87392296,129.55,129.48,19.3076]
[1719237728507,6.1299,129.55,129.48,19.3076]
[1719237728709,6.1299,129.55,129.49,7.7224]
[1719237729224,6.1299,129.55,129.48,19.3076]
[1719237729541,6.1299,129.55,129.49,7.7224]
[1719237729716,6.1299,129.55,129.48,27.0306]
[1719237730031,6.1299,129.55,129.49,7.722]
[1719237730912,6.1299,129.55,129.5,7.7219]
[1719237731209,6.1299,129.55,129.48,19.3076]
[1719237731420,1.74402296,129.54,129.45,19.3111]
[1719237731611,1.91402296,129.54,129.45,27.0356]
[1719237732013,1.91402296,129.54,129.47,19.309]
[1719237732245,0.17,129.53,129.47,27.0325]
[1719237732909,16.2059,129.52,129.44,19.3136]
[1719237733104,6.2933,129.5,129.39,7.7285]
[1719237733349,7.7242,129.47,129.38,19.3219]
[1719237733517,1.74402296,129.48,129.41,19.3181]
[1719237733709,0.17,129.49,129.45,7.7248]
[1719237733935,2.08402296,129.49,129.39,100.0]
[1719237734112,2.08402296,129.49,129.42,19.3163]
[1719237734113,0.34,129.49,129.42,19.3163]
[1719237734316,6.2933,129.5,129.46,19.3105]
[1719237734717,6.2933,129.5,129.45,7.7248]
[1719237734916,1.74402296,129.49,129.39,100.0]
[1719237735144,1.74402296,129.49,129.4,19.3187]
[1719237735432,1.74402296,129.49,129.4,119.3187]
[1719237735652,0.17,129.48,129.42,7.7266]
[1719237736132,6.2933,129.5,129.43,7.7257]
[1719237736351,2.08402296,129.49,129.41,7.7273]
[1719237736516,2.08402296,129.49,129.39,19.3205]
[1719237736714,2.08402296,129.49,129.4,7.7274]
[1719237736921,2.08402296,129.49,129.41,19.318]
[1719237737138,2.08402296,129.49,129.41,27.0449]
[1719237737345,2.08402296,129.49,129.41,19.318]